[Event "Open Nuevo Centro. Jornada 1"]
[Site "Chess.com"]
[Date "2020.06.19"]
[Round "4"]
[White "Casado Andreu, David"]
[Black "Borissov, Juli�n"]
[Result "0-1"]
[WhiteElo "1568"]
[BlackElo "1844"]
[TimeControl "180+2"]
[EndTime "11:14:14 PDT"]
[Termination "Victoria de julianborisov por abandono"]

1. e4 {[%clk 0:03:01.9]} 1... e5 {[%clk 0:02:57.7]} 2. Nf3 {[%clk 0:03:03.1]}
2... Nc6 {[%clk 0:02:58.1]} 3. Bc4 {[%clk 0:03:04.3]} 3... Nf6 {[%clk
0:02:56.7]} 4. d3 {[%clk 0:03:04.4]} 4... Be7 {[%clk 0:02:53.8]} 5. c3 {[%clk
0:03:05.4]} 5... O-O {[%clk 0:02:52.6]} 6. Bb3 {[%clk 0:03:05.8]} 6... b5 {[%clk
0:02:48.4]} 7. Bd5 {[%clk 0:03:02.6]} 7... Bb7 {[%clk 0:02:46.8]} 8. Qb3 {[%clk
0:02:47.5]} 8... Na5 {[%clk 0:02:36.3]} 9. Qxb5 {[%clk 0:02:47.2]} 9... c6
{[%clk 0:02:37.1]} 10. Bxf7+ {[%clk 0:02:38.8]} 10... Rxf7 {[%clk 0:02:27.8]}
11. Qa4 {[%clk 0:02:40]} 11... d6 {[%clk 0:01:59]} 12. b4 {[%clk 0:02:36.9]}
12... Nc4 {[%clk 0:02:00]} 13. dxc4 {[%clk 0:02:35.3]} 13... Nxe4 {[%clk
0:02:00.5]} 14. O-O {[%clk 0:02:34.3]} 14... Rxf3 {[%clk 0:01:54.2]} 15. gxf3
{[%clk 0:02:33.6]} 15... Ng5 {[%clk 0:01:50.1]} 16. Qd1 {[%clk 0:02:33.7]} 16...
c5 {[%clk 0:01:43.3]} 17. Bxg5 {[%clk 0:02:31.4]} 17... Bxg5 {[%clk 0:01:43.3]}
18. Nd2 {[%clk 0:02:23.5]} 18... Bf4 {[%clk 0:01:34.5]} 19. Ne4 {[%clk
0:02:13.4]} 19... Bxe4 {[%clk 0:00:42.4]} 20. fxe4 {[%clk 0:02:09.2]} 20... Kh8
{[%clk 0:00:20.9]} 21. Qf3 {[%clk 0:02:08.7]} 21... Qh4 {[%clk 0:00:19.5]} 22.
Qg2 {[%clk 0:02:05.7]} 22... Rf8 {[%clk 0:00:20.5]} 23. f3 {[%clk 0:01:57.4]}
23... Rf6 {[%clk 0:00:21.4]} 24. Rf2 {[%clk 0:01:57.4]} 24... Rg6 {[%clk
0:00:17.3]} 25. Qxg6 {[%clk 0:01:49.9]} 25... hxg6 {[%clk 0:00:17.7]} 26. Raf1
{[%clk 0:01:48.8]} 26... Be3 {[%clk 0:00:18.3]} 27. bxc5 {[%clk 0:01:44.9]}
27... Bxc5 {[%clk 0:00:16.2]} 28. a4 {[%clk 0:01:43.8]} 28... g5 {[%clk
0:00:13.8]} 29. Kg2 {[%clk 0:01:41.4]} 29... Bxf2 {[%clk 0:00:12.7]} 30. Rxf2
{[%clk 0:01:42.1]} 30... g4 {[%clk 0:00:14.3]} 31. f4 {[%clk 0:01:34.1]} 31...
Qh3+ {[%clk 0:00:13.8]} 32. Kg1 {[%clk 0:01:34.2]} 32... Qxc3 {[%clk 0:00:13.2]}
33. f5 {[%clk 0:01:33.7]} 33... Qxc4 {[%clk 0:00:13.1]} 34. Rg2 {[%clk 0:01:27]}
34... Qxe4 {[%clk 0:00:13.5]} 0

[Event "Open Nuevo Centro. Jornada 1"]
[Site "Chess.com"]
[Date "2020.06.19"]
[Round "4"]
[White "Salvador Buiza, Victor"]
[Black "Montesinos Diaz, Luis"]
[Result "0-1"]
[WhiteElo "1515"]
[BlackElo "1878"]
[TimeControl "180+2"]
[EndTime "11:14:30 PDT"]
[Termination "Victoria de Gwiso_06 por jaque mate"]

1. e4 {[%clk 0:03:01.9]} 1... c6 {[%clk 0:02:45.1]} 2. d4 {[%clk 0:03:01.7]}
2... d5 {[%clk 0:02:46.1]} 3. e5 {[%clk 0:03:02.1]} 3... c5 {[%clk 0:02:35.9]}
4. dxc5 {[%clk 0:03:02.3]} 4... e6 {[%clk 0:02:21.1]} 5. Be3 {[%clk 0:03:02.3]}
5... Nd7 {[%clk 0:02:18]} 6. Bb5 {[%clk 0:03:01]} 6... a6 {[%clk 0:02:15.5]} 7.
Ba4 {[%clk 0:02:59.3]} 7... Ne7 {[%clk 0:02:12.5]} 8. Ne2 {[%clk 0:02:48]} 8...
Nc6 {[%clk 0:02:10.1]} 9. Nd4 {[%clk 0:02:43.9]} 9... Ndxe5 {[%clk 0:02:07.4]}
10. Bf4 {[%clk 0:02:31.1]} 10... Bd7 {[%clk 0:02:01.4]} 11. O-O {[%clk
0:02:07.5]} 11... Bxc5 {[%clk 0:01:53.2]} 12. Bxc6 {[%clk 0:02:05.4]} 12... Nxc6
{[%clk 0:01:51.6]} 13. Nxc6 {[%clk 0:02:04.7]} 13... Bxc6 {[%clk 0:01:53.5]} 14.
Qg4 {[%clk 0:01:57.1]} 14... Qf6 {[%clk 0:01:50.4]} 15. Nc3 {[%clk 0:01:44.2]}
15... Qg6 {[%clk 0:01:47]} 16. Qe2 {[%clk 0:01:37]} 16... O-O {[%clk 0:01:43.6]}
17. a4 {[%clk 0:01:36]} 17... Rac8 {[%clk 0:01:40.1]} 18. Bg3 {[%clk 0:01:27.5]}
18... Rfe8 {[%clk 0:01:32.7]} 19. Kh1 {[%clk 0:01:26.5]} 19... h5 {[%clk
0:01:30.2]} 20. h4 {[%clk 0:01:24.6]} 20... e5 {[%clk 0:01:17.3]} 21. Rfe1
{[%clk 0:00:52.1]} 21... e4 {[%clk 0:01:08.4]} 22. Rad1 {[%clk 0:00:47.4]} 22...
Rcd8 {[%clk 0:01:06.9]} 23. Kh2 {[%clk 0:00:23.3]} 23... f5 {[%clk 0:01:03.5]}
24. Bf4 {[%clk 0:00:21.3]} 24... d4 {[%clk 0:01:01.7]} 25. Qc4+ {[%clk
0:00:18.5]} 25... Kh7 {[%clk 0:00:57.4]} 26. Qxc5 {[%clk 0:00:19.5]} 26... dxc3
{[%clk 0:00:55.7]} 27. bxc3 {[%clk 0:00:20.7]} 27... Rxd1 {[%clk 0:00:54]} 28.
Rxd1 {[%clk 0:00:21.5]} 28... Qg4 {[%clk 0:00:54.5]} 29. g3 {[%clk 0:00:21.5]}
29... Qxd1 {[%clk 0:00:54]} 30. Qxf5+ {[%clk 0:00:22.3]} 30... Kh8 {[%clk
0:00:52.4]} 31. Qxh5+ {[%clk 0:00:22.6]} 31... Kg8 {[%clk 0:00:53.1]} 32. Bg5
{[%clk 0:00:19.9]} 32... e3 {[%clk 0:00:52.9]} 33. Bxe3 {[%clk 0:00:20.1]} 33...
Qh1# {[%clk 0:00:52.4]} 0

[Event "Open Nuevo Centro. Jornada 1"]
[Site "Chess.com"]
[Date "2020.06.19"]
[Round "4"]
[White "Roca Cruz, Rafael"]
[Black "Chernikov, Vladimir"]
[Result "0-1"]
[WhiteElo "1666"]
[BlackElo "2245"]
[TimeControl "180+2"]
[EndTime "11:14:38 PDT"]
[Termination "Victoria de isla88 por abandono"]

1. d4 {[%clk 0:03:00.9]} 1... Nf6 {[%clk 0:02:59.5]} 2. c4 {[%clk 0:03:00.4]}
2... e5 {[%clk 0:03:00.2]} 3. dxe5 {[%clk 0:03:01.3]} 3... Ng4 {[%clk
0:03:01.3]} 4. e3 {[%clk 0:03:02.4]} 4... Nxe5 {[%clk 0:03:00.4]} 5. Nh3 {[%clk
0:03:03.4]} 5... g6 {[%clk 0:02:59.8]} 6. Be2 {[%clk 0:03:01.8]} 6... Bg7 {[%clk
0:03:00.3]} 7. Nc3 {[%clk 0:03:02.7]} 7... O-O {[%clk 0:03:00.7]} 8. O-O {[%clk
0:03:03.8]} 8... d6 {[%clk 0:03:00.4]} 9. Nf4 {[%clk 0:03:02.9]} 9... Nbc6
{[%clk 0:02:58.8]} 10. Qd2 {[%clk 0:02:52]} 10... Be6 {[%clk 0:02:51.4]} 11. b3
{[%clk 0:02:51.8]} 11... Qh4 {[%clk 0:02:33]} 12. g3 {[%clk 0:02:10.2]} 12...
Qe7 {[%clk 0:02:00.1]} 13. Bb2 {[%clk 0:01:54.3]} 13... Rac8 {[%clk 0:01:58.6]}
14. Ncd5 {[%clk 0:01:46]} 14... Bxd5 {[%clk 0:01:57.2]} 15. Nxd5 {[%clk
0:01:45.2]} 15... Qe6 {[%clk 0:01:56.8]} 16. f4 {[%clk 0:01:44.9]} 16... Nd7
{[%clk 0:01:39.2]} 17. Bxg7 {[%clk 0:01:38.9]} 17... Kxg7 {[%clk 0:01:41.1]} 18.
g4 {[%clk 0:00:31]} 18... f5 {[%clk 0:01:39.1]} 19. g5 {[%clk 0:00:30.4]} 19...
Ne7 {[%clk 0:01:24.4]} 20. Bf3 {[%clk 0:00:26.4]} 20... c6 {[%clk 0:01:07.5]}
21. Nxe7 {[%clk 0:00:22]} 21... Qxe7 {[%clk 0:01:09.4]} 22. Rab1 {[%clk
0:00:23]} 22... Nc5 {[%clk 0:01:04]} 23. Rbd1 {[%clk 0:00:21.9]} 23... Rcd8
{[%clk 0:01:01.5]} 24. Qd4+ {[%clk 0:00:18.1]} 24... Kg8 {[%clk 0:01:02.3]} 25.
b4 {[%clk 0:00:18.8]} 25... Ne6 {[%clk 0:00:55.6]} 26. Qxa7 {[%clk 0:00:16.1]}
26... Ra8 {[%clk 0:00:48.4]} 27. Qb6 {[%clk 0:00:12]} 27... Ra6 {[%clk
0:00:49.1]} 0

[Event "Open Nuevo Centro. Jornada 1"]
[Site "Chess.com"]
[Date "2020.06.19"]
[Round "4"]
[White "Amor�s P�rez, Manuel David"]
[Black "Deusa Ballesteros, Lucas "]
[Result "1-0"]
[WhiteElo "1648"]
[BlackElo "1451"]
[TimeControl "180+2"]
[EndTime "11:14:39 PDT"]
[Termination "Victoria de mpad1984 por tiempo"]

1. e4 {[%clk 0:03:01.9]} 1... e6 {[%clk 0:02:58]} 2. Nf3 {[%clk 0:02:55.3]} 2...
d5 {[%clk 0:02:58.7]} 3. exd5 {[%clk 0:02:56.9]} 3... exd5 {[%clk 0:03:00.6]} 4.
d4 {[%clk 0:02:58.7]} 4... Bd6 {[%clk 0:02:58.3]} 5. c4 {[%clk 0:02:58.1]} 5...
dxc4 {[%clk 0:02:58.6]} 6. Bxc4 {[%clk 0:02:59.2]} 6... Ne7 {[%clk 0:02:59]} 7.
O-O {[%clk 0:02:59.9]} 7... O-O {[%clk 0:02:59.4]} 8. Nc3 {[%clk 0:03:01.5]}
8... c6 {[%clk 0:02:58.3]} 9. Bg5 {[%clk 0:03:02]} 9... Kh8 {[%clk 0:02:56.2]}
10. Re1 {[%clk 0:03:02.9]} 10... f6 {[%clk 0:02:57.2]} 11. Bh4 {[%clk
0:03:02.1]} 11... Nf5 {[%clk 0:02:57.7]} 12. Qd3 {[%clk 0:02:58.2]} 12... Nxh4
{[%clk 0:02:41.8]} 13. Nxh4 {[%clk 0:03:00.1]} 13... Qc7 {[%clk 0:02:38.1]} 14.
Nf3 {[%clk 0:03:02]} 14... Bg4 {[%clk 0:02:35.3]} 15. Nh4 {[%clk 0:03:03.9]}
15... Bxh2+ {[%clk 0:02:32.7]} 16. Kf1 {[%clk 0:03:02.9]} 16... Bd6 {[%clk
0:02:25.1]} 17. f3 {[%clk 0:03:02.8]} 17... Bd7 {[%clk 0:02:22.3]} 18. d5 {[%clk
0:02:59.7]} 18... cxd5 {[%clk 0:02:16.1]} 19. Nxd5 {[%clk 0:02:57.6]} 19... Qd8
{[%clk 0:02:08]} 20. Nf5 {[%clk 0:02:53.1]} 20... Bxf5 {[%clk 0:01:59.8]} 21.
Qxf5 {[%clk 0:02:53.5]} 21... Nc6 {[%clk 0:01:38.3]} 22. Rad1 {[%clk 0:02:53]}
22... Qc8 {[%clk 0:01:26.8]} 23. Qxc8 {[%clk 0:02:15.6]} 23... Raxc8 {[%clk
0:01:28.7]} 24. b3 {[%clk 0:02:08.1]} 24... Bb8 {[%clk 0:01:23.1]} 25. Ne7
{[%clk 0:02:01.5]} 25... Nxe7 {[%clk 0:01:20.3]} 26. Rxe7 {[%clk 0:02:03.4]}
26... b6 {[%clk 0:01:08.4]} 27. Rdd7 {[%clk 0:02:01.9]} 27... Rcd8 {[%clk
0:00:40.7]} 28. Rxg7 {[%clk 0:01:53.6]} 28... Rxd7 {[%clk 0:00:40.7]} 29. Rxd7
{[%clk 0:01:54.5]} 29... a6 {[%clk 0:00:24.5]} 30. Bxa6 {[%clk 0:01:45.1]} 30...
h6 {[%clk 0:00:16.1]} 31. g4 {[%clk 0:01:36.6]} 31... Be5 {[%clk 0:00:07.7]} 32.
Bc4 {[%clk 0:01:33.2]} 32... Ra8 {[%clk 0:00:03.5]} 33. a4 {[%clk 0:01:32.7]}
33... Rf8 {[%clk 0:00:03.8]} 34. Kf2 {[%clk 0:01:30.5]} 34... Rb8 {[%clk
0:00:05.1]} 35. Ke3 {[%clk 0:01:30.7]} 35... Rf8 {[%clk 0:00:05.4]} 36. Ke4
{[%clk 0:01:31.7]} 36... Rb8 {[%clk 0:00:04.5]} 37. f4 {[%clk 0:01:31.4]} 37...
Bb2 {[%clk 0:00:03]} 38. Kf5 {[%clk 0:01:31.2]} 38... Bc3 {[%clk 0:00:03.1]} 39.
Kg6 {[%clk 0:01:31.9]} 39... Bb2 {[%clk 0:00:04.3]} 40. Kxh6 {[%clk 0:01:31.4]}
1

[Event "Open Nuevo Centro. Jornada 1"]
[Site "Chess.com"]
[Date "2020.06.19"]
[Round "4"]
[White "Garcia Oviedo, Alejandro"]
[Black "Gukasov, Artem"]
[Result "1-0"]
[WhiteElo "1882"]
[BlackElo "1560"]
[TimeControl "180+2"]
[EndTime "11:14:45 PDT"]
[Termination "Victoria de alexgarov por tiempo"]

1. g3 {[%clk 0:03:00.5]} 1... e6 {[%clk 0:03:00.7]} 2. Bg2 {[%clk 0:03:02.4]}
2... d5 {[%clk 0:03:02.4]} 3. d4 {[%clk 0:02:56.3]} 3... Nf6 {[%clk 0:03:04.3]}
4. Bg5 {[%clk 0:02:55.3]} 4... Be7 {[%clk 0:03:02]} 5. Nd2 {[%clk 0:02:55.9]}
5... O-O {[%clk 0:02:56.9]} 6. Ngf3 {[%clk 0:02:53.8]} 6... c5 {[%clk 0:02:56]}
7. O-O {[%clk 0:02:53.2]} 7... Qb6 {[%clk 0:02:53.8]} 8. dxc5 {[%clk 0:02:52]}
8... Qxc5 {[%clk 0:02:53.5]} 9. c3 {[%clk 0:02:52.3]} 9... Nc6 {[%clk
0:02:38.8]} 10. Nb3 {[%clk 0:02:37.5]} 10... Qb6 {[%clk 0:02:34.4]} 11. Bf4
{[%clk 0:02:35.9]} 11... Bd7 {[%clk 0:02:32.1]} 12. Qd3 {[%clk 0:02:09.9]} 12...
Na5 {[%clk 0:02:23.8]} 13. Nxa5 {[%clk 0:02:08.9]} 13... Qxa5 {[%clk 0:02:25.7]}
14. Ne5 {[%clk 0:02:09.3]} 14... Qb6 {[%clk 0:02:17.9]} 15. Qc2 {[%clk
0:01:56.1]} 15... Bd6 {[%clk 0:02:14.9]} 16. Rad1 {[%clk 0:01:53.2]} 16... Rfd8
{[%clk 0:01:36.6]} 17. Rfe1 {[%clk 0:01:46.4]} 17... Bb5 {[%clk 0:01:22.2]} 18.
a4 {[%clk 0:01:44]} 18... Ba6 {[%clk 0:01:20.5]} 19. b4 {[%clk 0:01:42.3]} 19...
Bxe5 {[%clk 0:01:19.8]} 20. Bxe5 {[%clk 0:01:43.2]} 20... Nd7 {[%clk 0:01:20.5]}
21. Bd4 {[%clk 0:01:42.8]} 21... Qc7 {[%clk 0:01:17.7]} 22. b5 {[%clk
0:01:43.8]} 22... e5 {[%clk 0:01:18.3]} 23. Be3 {[%clk 0:01:39.8]} 23... d4
{[%clk 0:01:18.8]} 24. Bg5 {[%clk 0:01:36.3]} 24... f6 {[%clk 0:01:18.6]} 25.
Bd2 {[%clk 0:01:37]} 25... dxc3 {[%clk 0:01:14.4]} 26. Bxc3 {[%clk 0:01:37.2]}
26... Rac8 {[%clk 0:01:14]} 27. Qb3+ {[%clk 0:01:38.1]} 27... Kh8 {[%clk
0:01:12.4]} 28. Rc1 {[%clk 0:01:39.3]} 28... Nc5 {[%clk 0:01:12.9]} 29. Qa2
{[%clk 0:01:32.8]} 29... Bxb5 {[%clk 0:00:54.2]} 30. axb5 {[%clk 0:01:34.7]}
30... Nd7 {[%clk 0:00:50.5]} 31. h3 {[%clk 0:01:11.9]} 31... Nb6 {[%clk
0:00:19.4]} 32. Kh2 {[%clk 0:01:04.8]} 32... h5 {[%clk 0:00:17.5]} 33. Bd2
{[%clk 0:00:58.8]} 1

[Event "Open Nuevo Centro. Jornada 1"]
[Site "Chess.com"]
[Date "2020.06.19"]
[Round "4"]
[White "Gutierrez Marco, Dario"]
[Black "Bosch Jord�, Ricard"]
[Result "1-0"]
[WhiteElo "1935"]
[BlackElo "1564"]
[TimeControl "180+2"]
[EndTime "11:14:47 PDT"]
[Termination "Victoria de rususs por jaque mate"]

1. e4 {[%clk 0:03:01.9]} 1... c6 {[%clk 0:02:59.5]} 2. d4 {[%clk 0:03:02]} 2...
d5 {[%clk 0:02:58.9]} 3. e5 {[%clk 0:03:03.2]} 3... Bf5 {[%clk 0:02:57.5]} 4. h4
{[%clk 0:03:02.7]} 4... h5 {[%clk 0:02:57.8]} 5. Bd3 {[%clk 0:03:03]} 5... Bxd3
{[%clk 0:02:58.3]} 6. Qxd3 {[%clk 0:03:04.9]} 6... e6 {[%clk 0:02:56.3]} 7. Bg5
{[%clk 0:03:04.7]} 7... Be7 {[%clk 0:02:57.1]} 8. Nf3 {[%clk 0:03:04.7]} 8...
Bxg5 {[%clk 0:02:58]} 9. Nxg5 {[%clk 0:03:04.7]} 9... Ne7 {[%clk 0:02:59.4]} 10.
Nd2 {[%clk 0:03:03.5]} 10... Nf5 {[%clk 0:02:59.4]} 11. Ndf3 {[%clk 0:03:04.5]}
11... Qb6 {[%clk 0:02:52.8]} 12. O-O {[%clk 0:02:58]} 12... Qa6 {[%clk
0:02:43.4]} 13. Qxa6 {[%clk 0:02:46.8]} 13... Nxa6 {[%clk 0:02:45.3]} 14. c3
{[%clk 0:02:47.5]} 14... O-O {[%clk 0:02:41]} 15. g3 {[%clk 0:02:48.4]} 15...
Nc7 {[%clk 0:02:32.5]} 16. a4 {[%clk 0:02:47.3]} 16... a5 {[%clk 0:02:23]} 17.
Nh3 {[%clk 0:02:39.4]} 17... b5 {[%clk 0:02:21]} 18. Nf4 {[%clk 0:02:39.3]}
18... Rfb8 {[%clk 0:02:17.7]} 19. Rfb1 {[%clk 0:02:10.9]} 19... Na6 {[%clk
0:01:03.1]} 20. axb5 {[%clk 0:02:09]} 20... Rxb5 {[%clk 0:01:03.5]} 21. Nxh5
{[%clk 0:02:06.7]} 21... c5 {[%clk 0:00:52.9]} 22. Nf4 {[%clk 0:01:48.4]} 22...
cxd4 {[%clk 0:00:44.5]} 23. cxd4 {[%clk 0:01:50.3]} 23... Nb4 {[%clk 0:00:41]}
24. Rc1 {[%clk 0:01:30.5]} 24... Rb6 {[%clk 0:00:21.2]} 25. Ra4 {[%clk
0:01:12.4]} 25... Nc6 {[%clk 0:00:19.4]} 26. Rc2 {[%clk 0:01:13.3]} 26... Raa6
{[%clk 0:00:10.3]} 27. Nd3 {[%clk 0:01:05.7]} 27... Nb4 {[%clk 0:00:09.2]} 28.
Rc8+ {[%clk 0:00:55.8]} 28... Kh7 {[%clk 0:00:09.5]} 29. Nc5 {[%clk 0:00:56.7]}
29... Ra7 {[%clk 0:00:07.3]} 30. Ng5+ {[%clk 0:00:55.3]} 30... Kg6 {[%clk
0:00:08.1]} 31. Nf3 {[%clk 0:00:48.5]} 31... Nc2 {[%clk 0:00:09]} 32. g4 {[%clk
0:00:45.9]} 32... Nh6 {[%clk 0:00:08.5]} 33. h5+ {[%clk 0:00:44.8]} 33... Kh7
{[%clk 0:00:08.4]} 34. Ng5# {[%clk 0:00:45.8]} 1

[Event "Open Nuevo Centro. Jornada 1"]
[Site "Chess.com"]
[Date "2020.06.19"]
[Round "4"]
[White "Zakharash, Georgii"]
[Black "Fitzpatrick Dimas  , Andrew "]
[Result "1/2-1/2"]
[WhiteElo "976"]
[BlackElo "1238"]
[TimeControl "180+2"]
[EndTime "11:14:48 PDT"]
[Termination "Partida en tablas por mutuo acuerdo"]

1. e4 {[%clk 0:03:01.9]} 1... e5 {[%clk 0:02:59.1]} 2. Nf3 {[%clk 0:03:00.6]}
2... Nc6 {[%clk 0:02:58.8]} 3. Bb5 {[%clk 0:03:00]} 3... Qf6 {[%clk 0:02:54.2]}
4. O-O {[%clk 0:02:58.8]} 4... Bd6 {[%clk 0:02:52.2]} 5. Re1 {[%clk 0:02:55.2]}
5... a6 {[%clk 0:02:47.9]} 6. Ba4 {[%clk 0:02:54.1]} 6... b5 {[%clk 0:02:47.2]}
7. Bb3 {[%clk 0:02:51.2]} 7... Nge7 {[%clk 0:02:46.9]} 8. c3 {[%clk 0:02:48.4]}
8... O-O {[%clk 0:02:46.5]} 9. d4 {[%clk 0:02:33.8]} 9... Na5 {[%clk 0:02:38.3]}
10. Bc2 {[%clk 0:02:30.5]} 10... Nc4 {[%clk 0:02:34.7]} 11. d5 {[%clk
0:02:19.5]} 11... Bc5 {[%clk 0:02:13.1]} 12. Nbd2 {[%clk 0:02:17.5]} 12... Nxd2
{[%clk 0:01:57.9]} 13. Bxd2 {[%clk 0:02:16.6]} 13... Qb6 {[%clk 0:01:53.8]} 14.
Be3 {[%clk 0:02:09.7]} 14... Bxe3 {[%clk 0:01:52.7]} 15. Rxe3 {[%clk 0:02:08]}
15... d6 {[%clk 0:01:52.5]} 16. Re1 {[%clk 0:01:58.6]} 16... Bg4 {[%clk
0:01:50.4]} 17. h3 {[%clk 0:01:55]} 17... Bxf3 {[%clk 0:01:50.3]} 18. Qxf3
{[%clk 0:01:53.3]} 18... b4 {[%clk 0:01:42.7]} 19. c4 {[%clk 0:01:46.8]} 19...
c5 {[%clk 0:01:38.9]} 20. b3 {[%clk 0:01:42.6]} 20... Ng6 {[%clk 0:01:33.1]} 21.
Qe3 {[%clk 0:01:37.7]} 21... Rae8 {[%clk 0:01:17.7]} 22. Bd1 {[%clk 0:01:36.1]}
22... Re7 {[%clk 0:01:17.6]} 23. Rf1 {[%clk 0:01:31.5]} 23... Nf4 {[%clk
0:01:16.3]} 24. Kh2 {[%clk 0:01:09.4]} 24... a5 {[%clk 0:01:15.5]} 25. g3 {[%clk
0:01:07.6]} 25... Ng6 {[%clk 0:01:14.3]} 26. h4 {[%clk 0:01:07.1]} 26... Ra7
{[%clk 0:01:02.6]} 27. Bg4 {[%clk 0:01:05.5]} 27... Re8 {[%clk 0:00:54.9]} 28.
a3 {[%clk 0:01:03]} 28... bxa3 {[%clk 0:00:53.4]} 29. Rxa3 {[%clk 0:01:01.7]}
29... f6 {[%clk 0:00:51.4]} 30. Be6+ {[%clk 0:00:57.7]} 30... Kh8 {[%clk
0:00:51.4]} 31. Rfa1 {[%clk 0:00:52.3]} 31... Rf8 {[%clk 0:00:46]} 32. Qe2
{[%clk 0:00:45.3]} 32... Rfa8 {[%clk 0:00:35.2]} 33. Qd2 {[%clk 0:00:34.8]}
33... Nf8 {[%clk 0:00:31.2]} 34. Bh3 {[%clk 0:00:34.2]} 34... Ng6 {[%clk
0:00:30.8]} 35. Bf5 {[%clk 0:00:32.2]} 1/2-1

[Event "Open Nuevo Centro. Jornada 1"]
[Site "Chess.com"]
[Date "2020.06.19"]
[Round "4"]
[White "Valverde Alcaide, Miguel Alejandro"]
[Black "Fern�ndez Martin, Carlos"]
[Result "0-1"]
[WhiteElo "918"]
[BlackElo "1272"]
[TimeControl "180+2"]
[EndTime "11:14:56 PDT"]
[Termination "Victoria de Pistachomortal por jaque mate"]

1. e4 {[%clk 0:03:01.9]} 1... c5 {[%clk 0:03:00.5]} 2. Nc3 {[%clk 0:02:57.5]}
2... d6 {[%clk 0:03:01.3]} 3. d3 {[%clk 0:02:54.7]} 3... Nf6 {[%clk 0:03:01.7]}
4. Nf3 {[%clk 0:02:49.7]} 4... e6 {[%clk 0:03:01.9]} 5. h4 {[%clk 0:02:34.2]}
5... Be7 {[%clk 0:02:58.2]} 6. g3 {[%clk 0:02:28.3]} 6... Nc6 {[%clk 0:02:57.9]}
7. Na4 {[%clk 0:02:19.8]} 7... Qa5+ {[%clk 0:02:56.7]} 8. Bd2 {[%clk 0:02:10.9]}
8... Qxa4 {[%clk 0:02:56.8]} 9. b3 {[%clk 0:02:09]} 9... Qa6 {[%clk 0:02:46.7]}
10. d4 {[%clk 0:02:08.8]} 10... Qb6 {[%clk 0:02:47.4]} 11. a4 {[%clk 0:01:56.1]}
11... cxd4 {[%clk 0:02:45.8]} 12. a5 {[%clk 0:01:55.1]} 12... Qc7 {[%clk
0:02:45.1]} 13. Qe2 {[%clk 0:01:43]} 13... Bd7 {[%clk 0:02:42.4]} 14. a6 {[%clk
0:01:40]} 14... b6 {[%clk 0:02:38.3]} 15. e5 {[%clk 0:01:29.8]} 15... dxe5
{[%clk 0:02:35.4]} 16. Nxe5 {[%clk 0:01:17.1]} 16... Nxe5 {[%clk 0:02:22.1]} 17.
Bf4 {[%clk 0:01:15.2]} 17... Qc3+ {[%clk 0:02:21.3]} 18. Bd2 {[%clk 0:00:42.9]}
18... Qxa1+ {[%clk 0:02:17.7]} 19. Qd1 {[%clk 0:00:41.1]} 19... Qxd1+ {[%clk
0:02:07.6]} 20. Kxd1 {[%clk 0:00:41.7]} 20... Nf3 {[%clk 0:01:58.1]} 21. c3
{[%clk 0:00:18.6]} 21... dxc3 {[%clk 0:01:55.2]} 22. Bxc3 {[%clk 0:00:19]} 22...
Ne4 {[%clk 0:01:36.6]} 23. Bg2 {[%clk 0:00:18.1]} 23... Nxc3+ {[%clk 0:01:25.1]}
24. Kc2 {[%clk 0:00:19.1]} 24... Rc8 {[%clk 0:01:17.7]} 25. Bxf3 {[%clk
0:00:18.2]} 25... Ne4+ {[%clk 0:01:09]} 26. Kb2 {[%clk 0:00:17.7]} 26... Nxf2
{[%clk 0:01:09]} 27. Rc1 {[%clk 0:00:14.4]} 27... Nd3+ {[%clk 0:01:09.3]} 28.
Kb1 {[%clk 0:00:11.7]} 28... Nxc1 {[%clk 0:01:11.2]} 29. Kb2 {[%clk 0:00:11.7]}
29... Nd3+ {[%clk 0:01:03.2]} 30. Ka1 {[%clk 0:00:07.9]} 30... Rc1+ {[%clk
0:00:52]} 31. Ka2 {[%clk 0:00:08]} 31... Bf6 {[%clk 0:00:36.2]} 32. Be4 {[%clk
0:00:08.1]} 32... Ra1# {[%clk 0:00:34.9]} 0